lending/lending_fUSD_20240703
["ID","MTS","AMOUNT","RATE_DAILY","PERIOD"]
[330949495,1719971444957,-971.5095834,0.00020071,2]
[330949496,1719971444966,-420.61659921,0.00020098,2]
[330949497,1719971444975,-150.47252417,0.00020103,2]
[330949498,1719971444985,-152.71946826,0.00020111,2]
[330949499,1719971444994,-221.13782654,0.00020131,2]
[330949500,1719971445004,-688.63871007,0.0002014,2]
[330949501,1719971445013,-688.63871007,0.00020145,2]
[330949502,1719971445023,-608.71384337,0.00020146,2]
[330949503,1719971445033,-150.47252417,0.00020156,2]
[330949504,1719971445043,-150.47252417,0.00020167,2]
[330949505,1719971445052,-154.20267466,0.00020172,2]
[330949506,1719971445062,-688.63871007,0.000202,2]
[330949507,1719971445072,-608.71384337,0.00020214,2]
[330949508,1719971445081,-152.71946826,0.00020226,2]
[330949509,1719971445091,-166.66666665,0.00020229,2]
[330949510,1719971445100,-166.5,0.00020231,2]
[330949511,1719971445110,-166.66666666,0.00020231,2]
[330949512,1719971445119,-151.84144189,0.00020234,2]
[330949513,1719971445128,-154.81548551,0.00020243,2]
[330949514,1719971445138,-688.63871007,0.00020294,2]
[330949515,1719971445147,-420.61659921,0.00020306,2]
[330949516,1719971445157,-151.84144189,0.00020325,2]
[330949517,1719971445166,-608.71384337,0.00020331,2]
[330949518,1719971445175,-154.81548551,0.00020354,2]
[330949519,1719971445185,-547.4,0.0002036,2]
[330949520,1719971445194,-608.71384337,0.0002038,2]
[330949521,1719971445203,-187.03,0.00020382,2]
[330949522,1719971445213,-154.81548551,0.00020391,2]
[330949523,1719971445222,-154.81402549,0.00020408,2]
[330949524,1719971445231,-608.71384337,0.00020413,2]
[330949525,1719971445240,-300.28002299,0.00020428,2]
[330949526,1719971445249,-608.71384337,0.00020435,2]
[330949527,1719971445259,-169.46,0.00020463,2]
[330949528,1719971445268,-179.3043869,0.00020483,2]
[330949529,1719971445279,-688.63871007,0.00020502,2]
[330949530,1719971445288,-221.13782654,0.00020511,2]
[330949531,1719971445299,-154.81402549,0.00020522,2]
[330949532,1719971445309,-500.0,0.00020524,2]
[330949533,1719971445318,-500.0,0.00020524,2]
[330949534,1719971445327,-348.74721044,0.00020534,2]
[330949535,1719971445336,-154.20267466,0.00020542,2]
[330949536,1719971445347,-166.5,0.00020575,2]
[330949537,1719971445357,-2318.85464,0.000206,2]
[330949538,1719971445367,-608.71384337,0.00020615,2]
[330949539,1719971445377,-150.0,0.00020615,2]
[330949540,1719971445386,-154.49353944,0.00020619,2]
[330949541,1719971445395,-392.5,0.0002063,2]
[330949542,1719971445405,-1091.75830289,0.00020647,2]
[330949543,1719971445414,-154.20267466,0.00020668,2]
[330949544,1719971445423,-151.0,0.00020679,2]
[330949545,1719971445433,-151.0,0.00020679,2]
[330949546,1719971445443,-151.0,0.00020679,2]
[330949547,1719971445453,-151.0,0.00020679,2]
[330949548,1719971445462,-151.0,0.00020679,2]
[330949549,1719971445472,-284.267026,0.00020679,2]
[330949550,1719971445481,-151.0,0.00020679,2]
[330949551,1719971445490,-151.0,0.00020679,2]
[330949552,1719971445499,-151.0,0.00020679,2]
[330949553,1719971445509,-151.0,0.00020679,2]
[330949554,1719971445518,-151.0,0.00020679,2]
[330949555,1719971445527,-151.0,0.00020679,2]
[330949556,1719971445537,-151.0,0.00020679,2]
[330949557,1719971445546,-151.0,0.00020679,2]
[330949558,1719971445556,-151.0,0.00020679,2]
[330949559,1719971445565,-151.0,0.00020679,2]
[330949560,1719971445578,-151.0,0.00020679,2]
[330949561,1719971445587,-431.722894,0.00020679,2]
[330949562,1719971445596,-431.722894,0.00020679,2]
[330949563,1719971445605,-462.079713,0.00020679,2]
[330949564,1719971445614,-462.079713,0.00020679,2]
[330949565,1719971445623,-151.145056,0.00020679,2]
[330949566,1719971445632,-151.0,0.00020679,2]
[330949567,1719971445642,-859.771806,0.00020679,2]
[330949568,1719971445651,-152.13328,0.00020679,2]
[330949569,1719971445661,-859.771806,0.00020679,2]
[330949570,1719971445671,-151.0,0.00020679,2]
[330949571,1719971445680,-151.0,0.00020679,2]
[330949572,1719971445689,-152.346959,0.00020679,2]
[330949573,1719971445699,-151.0,0.00020679,2]
[330949574,1719971445708,-151.0,0.00020679,2]
[330949575,1719971445725,-151.0,0.00020679,2]
[330949576,1719971445739,-151.0,0.00020679,2]
[330949577,1719971445749,-151.0,0.00020679,2]
[330949578,1719971445760,-151.0,0.00020679,2]
[330949579,1719971445771,-151.0,0.00020679,2]
[330949580,1719971445784,-822277.92399683,0.00020679,7]
[330949581,1719971445801,-438.70900783,0.00020679,7]
[330949582,1719971445838,-287.72775144,0.00016952,2]
[330949583,1719971446242,-185.57369661,0.00013578,2]
[330949584,1719971446252,-783.51424856,0.00016952,2]
[330949585,1719971446262,-160.6586144,0.00018999,2]
[330949586,1719971446311,-1122.2550414,0.00018999,2]
[330949587,1719971446322,-1070.0,0.00019952,2]
[330949588,1719971446331,-1591921.86512886,0.00020679,7]
[330949589,1719971446341,-860965.97434041,0.0002068,2]
[330949590,1719971446351,-151.724217,0.0002068,2]
[330949591,1719971446362,-151.0,0.0002068,2]
[330949592,1719971446372,-151.0,0.0002068,2]
[330949593,1719971446382,-151.0,0.0002068,2]
[330949594,1719971446391,-154.445901,0.0002068,2]
[330949595,1719971446400,-151.0,0.0002068,2]
[330949597,1719971446410,-151.0,0.0002068,2]
[330949598,1719971446420,-151.0,0.0002068,2]
[330949600,1719971446430,-151.0,0.0002068,2]
[330949602,1719971446439,-223.292788,0.0002068,2]
[330949604,1719971446448,-223.292788,0.0002068,2]
[330949606,1719971446458,-151.0,0.0002068,2]
[330949607,1719971446467,-151.0,0.0002068,2]
[330949608,1719971446477,-151.0,0.0002068,2]
[330949609,1719971446696,-151.0,0.0002068,2]
[330949611,1719971446706,-151.0,0.0002068,2]
[330949612,1719971446714,-151.0,0.0002068,2]
[330949613,1719971446724,-151.0,0.0002068,2]
[330949614,1719971446734,-151.0,0.0002068,2]
[330949615,1719971446743,-151.0,0.0002068,2]
[330949616,1719971446753,-151.0,0.0002068,2]
[330949617,1719971446763,-151.0,0.0002068,2]
[330949618,1719971446772,-176.673724,0.0002068,2]
[330949619,1719971446783,-199.489458,0.0002068,2]
[330949620,1719971446792,-151.38631,0.0002068,2]
[330949621,1719971446801,-199.489458,0.0002068,2]
[330949622,1719971446811,-151.0,0.0002068,2]
[330949623,1719971446822,-151.159999,0.0002068,2]
[330949624,1719971446832,-151.0,0.0002068,2]
[330949625,1719971446842,-151.0,0.0002068,2]
[330949626,1719971446851,-151.0,0.0002068,2]
[330949627,1719971446861,-151.0,0.0002068,2]
[330949628,1719971446870,-172.054291,0.0002068,2]
[330949629,1719971446879,-172.054291,0.0002068,2]
[330949630,1719971446889,-241.422956,0.0002068,2]
[330949631,1719971446898,-241.422956,0.0002068,2]
[330949632,1719971446907,-151.0,0.0002068,2]
[330949633,1719971446916,-151.0,0.0002068,2]
[330949634,1719971446926,-342.220646,0.0002068,2]
[330949635,1719971446935,-342.220646,0.0002068,2]
[330949636,1719971446944,-151.0,0.0002068,2]
[330949637,1719971446954,-151.0,0.0002068,2]
[330949638,1719971446963,-151.0,0.0002068,2]
[330949639,1719971446972,-151.0,0.0002068,2]
[330949640,1719971446982,-151.0,0.0002068,2]
[330949641,1719971446991,-151.0,0.0002068,2]
[330949642,1719971447000,-151.0,0.0002068,2]
[330949643,1719971447009,-151.0,0.0002068,2]
[330949644,1719971447019,-151.0,0.0002068,2]
[330949645,1719971447028,-151.0,0.0002068,2]
[330949646,1719971447037,-151.0,0.0002068,2]
[330949647,1719971447047,-151.0,0.0002068,2]
[330949648,1719971447056,-151.0,0.0002068,2]
[330949649,1719971447065,-151.0,0.0002068,2]
[330949650,1719971447075,-151.0,0.0002068,2]
[330949651,1719971447085,-151.0,0.0002068,2]
[330949652,1719971447094,-151.0,0.0002068,2]
[330949653,1719971447103,-151.0,0.0002068,2]
[330949654,1719971447113,-151.0,0.0002068,2]
[330949655,1719971447122,-151.0,0.0002068,2]
[330949656,1719971447132,-151.0,0.0002068,2]
[330949657,1719971447141,-151.0,0.0002068,2]
[330949658,1719971447150,-151.0,0.0002068,2]
[330949659,1719971447159,-151.0,0.0002068,2]
[330949660,1719971447169,-158.506348,0.0002068,2]
[330949661,1719971447178,-158.506348,0.0002068,2]
[330949662,1719971447187,-158.506348,0.0002068,2]
[330949664,1719971447197,-158.506348,0.0002068,2]
[330949666,1719971447206,-151.0,0.0002068,2]
[330949668,1719971447215,-151.0,0.0002068,2]
[330949670,1719971447224,-238.559462,0.0002068,2]
[330949672,1719971447234,-238.559462,0.0002068,2]
[330949674,1719971447243,-151.0,0.0002068,2]
[330949677,1719971447252,-151.0,0.0002068,2]
[330949679,1719971447262,-151.0,0.0002068,2]
[330949681,1719971447271,-151.0,0.0002068,2]
[330949683,1719971447282,-238.559462,0.0002068,2]
[330949685,1719971447291,-238.559462,0.0002068,2]
[330949687,1719971447301,-151.0,0.0002068,2]
[330949689,1719971447310,-151.0,0.0002068,2]
[330949691,1719971447320,-1520.891042,0.0002068,2]
[330949693,1719971447329,-1520.891042,0.0002068,2]
[330949695,1719971447338,-1520.891042,0.0002068,2]
[330949697,1719971447348,-1520.891042,0.0002068,2]
[330949698,1719971447358,-151.0,0.0002068,2]
[330949700,1719971447367,-151.0,0.0002068,2]
[330949703,1719971447378,-151.0,0.0002068,2]
[330949705,1719971447387,-151.0,0.0002068,2]
[330949707,1719971447396,-151.0,0.0002068,2]
[330949708,1719971447406,-151.0,0.0002068,2]
[330949711,1719971447415,-151.0,0.0002068,2]
[330949713,1719971447424,-151.0,0.0002068,2]
[330949715,1719971447434,-151.0,0.0002068,2]
[330949717,1719971447443,-151.720111,0.0002068,2]
[330949718,1719971447452,-151.0,0.0002068,2]
[330949721,1719971447461,-151.0,0.0002068,2]
[330949722,1719971447471,-151.0,0.0002068,2]
[330949725,1719971447482,-151.477932,0.0002068,2]
[330949726,1719971447490,-151.0,0.0002068,2]
[330949728,1719971447500,-151.0,0.0002068,2]
[330949731,1719971447509,-151.0,0.0002068,2]
[330949732,1719971447519,-151.0,0.0002068,2]
[330949734,1719971447528,-151.0,0.0002068,2]
[330949737,1719971447537,-151.0,0.0002068,2]
[330949739,1719971447547,-152.825794,0.0002068,2]
[330949740,1719971447556,-1260.695643,0.0002068,2]
[330949743,1719971447566,-1260.695643,0.0002068,2]
[330949745,1719971447580,-1260.695643,0.0002068,2]
[330949747,1719971447589,-1260.695643,0.0002068,2]
[330949749,1719971447600,-357.6621,0.0002068,2]
[330949751,1719971447609,-151.0,0.0002068,2]
[330949753,1719971447618,-151.0,0.0002068,2]
[330949755,1719971447627,-357.6621,0.0002068,2]
[330949757,1719971447637,-1234.889065,0.0002068,2]
[330949759,1719971447646,-1234.889065,0.0002068,2]
[330949761,1719971447655,-165.914141,0.0002068,2]
[330949763,1719971447665,-165.914141,0.0002068,2]
[330949765,1719971447674,-1234.889065,0.0002068,2]
[330949766,1719971447684,-151.0,0.0002068,2]
[330949769,1719971447693,-1234.889065,0.0002068,2]
[330949771,1719971447702,-151.0,0.0002068,2]
[330949772,1719971447711,-357.6621,0.0002068,2]
[330949775,1719971447721,-357.6621,0.0002068,2]
[330949776,1719971447731,-165.914141,0.0002068,2]
[330949778,1719971447740,-165.914141,0.0002068,2]
[330949780,1719971447750,-151.0,0.0002068,2]
[330949783,1719971447759,-151.0,0.0002068,2]
[330949785,1719971447769,-151.0,0.0002068,2]
[330949786,1719971447778,-151.0,0.0002068,2]
[330949788,1719971447787,-151.0,0.0002068,2]
[330949790,1719971447797,-151.0,0.0002068,2]
[330949792,1719971447806,-151.0,0.0002068,2]
[330949794,1719971447815,-151.0,0.0002068,2]
[330949796,1719971447824,-151.0,0.0002068,2]
[330949798,1719971447833,-151.0,0.0002068,2]
[330949801,1719971447843,-674.877562,0.0002068,2]
[330949802,1719971447852,-674.877562,0.0002068,2]
[330949804,1719971447861,-151.0,0.0002068,2]
[330949807,1719971447873,-151.0,0.0002068,2]
[330949809,1719971447883,-674.877562,0.0002068,2]
[330949810,1719971447892,-674.877562,0.0002068,2]
[330949813,1719971447901,-151.0,0.0002068,2]
[330949815,1719971447910,-151.0,0.0002068,2]
[330949817,1719971447920,-157.735581,0.0002068,2]
[330949819,1719971447931,-926.652199,0.0002068,2]
[330949821,1719971447941,-926.652199,0.0002068,2]
[330949823,1719971447950,-926.652199,0.0002068,2]
[330949825,1719971447960,-926.652199,0.0002068,2]
[330949827,1719971447969,-151.0,0.0002068,2]
[330949829,1719971447978,-151.0,0.0002068,2]
[330949831,1719971447988,-151.0,0.0002068,2]
[330949833,1719971447998,-151.0,0.0002068,2]
[330949835,1719971448007,-151.0,0.0002068,2]
[330949837,1719971448017,-151.457413,0.0002068,2]
[330949839,1719971448028,-151.0,0.0002068,2]
[330949841,1719971448038,-151.0,0.0002068,2]
[330949843,1719971448047,-151.0,0.0002068,2]
[330949845,1719971448057,-151.0,0.0002068,2]
[330949847,1719971448066,-286.553711,0.0002068,2]
[330949849,1719971448076,-151.0,0.0002068,2]
[330949851,1719971448085,-286.553711,0.0002068,2]
[330949853,1719971448096,-151.0,0.0002068,2]
[330949855,1719971448105,-151.0,0.0002068,2]
[330949857,1719971448116,-151.468326,0.0002068,2]
[330949859,1719971448126,-151.147051,0.0002068,2]
[330949861,1719971448135,-151.147051,0.0002068,2]
[330949863,1719971448145,-286.553711,0.0002068,2]
[330949866,1719971448155,-286.553711,0.0002068,2]
[330949867,1719971448164,-151.0,0.0002068,2]
[330949870,1719971448174,-151.0,0.0002068,2]
[330949872,1719971448183,-151.147051,0.0002068,2]
[330949874,1719971448192,-151.147051,0.0002068,2]
[330949876,1719971448202,-2256.128756,0.0002068,2]
[330949878,1719971448212,-2256.128756,0.0002068,2]
[330949880,1719971448221,-2256.128756,0.0002068,2]
[330949881,1719971448230,-2256.128756,0.0002068,2]
[330949884,1719971448240,-151.0,0.0002068,2]
[330949886,1719971448250,-151.0,0.0002068,2]
[330949888,1719971448259,-151.0,0.0002068,2]
[330949890,1719971448268,-151.0,0.0002068,2]
[330949891,1719971448278,-350.60099,0.0002068,2]
[330949894,1719971448288,-350.60099,0.0002068,2]
[330949895,1719971448297,-151.0,0.0002068,2]
[330949897,1719971448306,-151.0,0.0002068,2]
[330949900,1719971448315,-350.60099,0.0002068,2]
[330949901,1719971448324,-350.60099,0.0002068,2]
[330949904,1719971448333,-431.722894,0.0002068,2]
[330949906,1719971448343,-431.722894,0.0002068,2]
[330949907,1719971448353,-462.079713,0.0002068,2]
[330949910,1719971448363,-462.079713,0.0002068,2]
[330949912,1719971448372,-151.0,0.0002068,2]
[330949914,1719971448381,-859.771806,0.0002068,2]
[330949916,1719971448390,-859.771806,0.0002068,2]
[330949918,1719971448400,-151.0,0.0002068,2]
[330949920,1719971448409,-151.0,0.0002068,2]
[330949922,1719971448418,-151.0,0.0002068,2]
[330949924,1719971448428,-151.0,0.0002068,2]
[330949926,1719971448437,-151.0,0.0002068,2]
[330949928,1719971448446,-151.0,0.0002068,2]
[330949930,1719971448455,-151.0,0.0002068,2]
[330949932,1719971448464,-151.0,0.0002068,2]
[330949934,1719971448473,-158.246735,0.0002068,2]
[330949936,1719971448483,-688.63871007,0.00020682,2]
[330949938,1719971448492,-155.97260672,0.00020691,2]
[330949940,1719971448501,-150.0,0.00020691,4]
[330949942,1719971448510,-150.0,0.00020691,4]
[330949944,1719971448519,-150.0,0.00020691,4]
[330949946,1719971448529,-153.46969661,0.00020691,4]
[330949948,1719971448538,-150.0,0.000207,2]
[330949950,1719971448548,-300.28002299,0.00020705,2]
[330949952,1719971448558,-152.71946826,0.00020707,2]
[330949954,1719971448576,-7141.40254399,0.00020709,2]
[330949956,1719971448586,-420.61659921,0.00020737,2]
[330949958,1719971448596,-2196.95469581,0.00020742,2]
[330949960,1719971448606,-152.71946826,0.00020749,2]
[330949962,1719971448616,-300.28002299,0.0002077,2]
[330949964,1719971448625,-300.28002299,0.0002078,2]
[330949966,1719971448634,-420.61659921,0.00020781,2]
[330949968,1719971448644,-420.61659921,0.00020794,2]
[330949970,1719971448656,-1200.0,0.000208,7]
[330949972,1719971448666,-1446.24822797,0.000208,2]
[330949974,1719971448675,-150.0,0.00020808,2]
[330949976,1719971448684,-786.181113,0.00020822,2]
[330949978,1719971448694,-934.0326335,0.00020829,2]
[330949981,1719971448703,-154.81548551,0.00020839,2]
[330949982,1719971448712,-688.63871007,0.00020842,2]
[330949985,1719971448721,-150.0,0.00020844,4]
[330949987,1719971448731,-151.84144189,0.00020849,2]
[330949988,1719971448740,-300.28002299,0.00020853,2]
[330949990,1719971448749,-166.66666666,0.00020862,2]
[330949993,1719971448759,-159.62594873,0.0002087,2]
[330949995,1719971448768,-150.0,0.00020888,2]
[330949996,1719971448778,-200.0,0.000209,7]
[330949998,1719971448787,-178.72262206,0.000209,2]
[330950001,1719971448798,-934.0326335,0.00020914,2]
[330950003,1719971448808,-166.5,0.0002092,2]
[330950004,1719971448818,-150.47252417,0.0002092,2]
[330950007,1719971448827,-971.5095834,0.00020944,2]
[330950008,1719971448837,-221.13782654,0.00020954,2]
[330950011,1719971448847,-150.0,0.00020965,2]
[330950013,1719971448856,-348.74721044,0.00020966,2]
[330950015,1719971448866,-934.0326335,0.00020972,2]
[330950017,1719971448876,-150.0,0.00020998,4]
[330950018,1719971448885,-1099.10580547,0.00021,2]
[330950019,1719971448895,-1250.0,0.00021,2]
[330950020,1719971448904,-225.96752434,0.00021,2]
[330950021,1719971448914,-1860.57,0.00021,2]
[330950022,1719971448923,-203.233329,0.00021,2]
[330950023,1719971448932,-150.0,0.00021003,2]
[330950024,1719971448942,-156.49906727,0.00021003,2]
[330950025,1719971448951,-300.28002299,0.00021017,2]
[330950026,1719971448960,-172.46194822,0.00021043,2]
[330950027,1719971448969,-589.0,0.00021043,2]
[330950028,1719971448978,-150.0,0.00021051,2]
[330950029,1719971448988,-36248.01,0.00021056,6]
[330950030,1719971448997,-11214.43,0.00021056,6]
[330950032,1719971449006,-127636.07,0.00021056,6]
[330950034,1719971449015,-934.0326335,0.00021059,2]
[330950036,1719971449025,-340.16703234,0.00021068,7]
[330950038,1719971449036,-536.27920903,0.00021068,2]
[330950040,1719971449045,-746.36792122,0.00021068,2]
[330950042,1719971449057,-170.31701261,0.00021068,2]
[330950051,1719971449128,-24704.34231688,0.00021068,2]
[330950053,1719971449137,-449.51367769,0.00021068,2]
[330950055,1719971449146,-155.50612131,0.00021068,2]
[330950057,1719971449155,-150.0,0.00021074,4]
[330950059,1719971449164,-221.13782654,0.00021086,2]
[330950061,1719971449174,-1811.5458592,0.00021109,2]
[330950063,1719971449183,-2196.95469581,0.00021133,2]
[330950065,1719971449192,-150.0,0.00021135,2]
[330950067,1719971449201,-1105.13184068,0.00021145,2]
[330950069,1719971449210,-150.0,0.00021151,4]
[330950071,1719971449219,-934.0326335,0.00021175,2]
[330950073,1719971449228,-348.74721044,0.00021181,2]
[330950075,1719971449238,-150.0,0.00021187,2]
[330950077,1719971449246,-150.0,0.00021204,2]
[330950079,1719971449256,-166.66666667,0.00021206,2]
[330950081,1719971449265,-221.13782654,0.00021206,2]
[330950083,1719971449274,-150.0,0.00021208,2]
[330950085,1719971449288,-2196.95469581,0.00021243,2]
[330950086,1719971449297,-250.0,0.00021248,2]
[330950087,1719971449307,-934.0326335,0.00021251,2]
[330950088,1719971449316,-221.13782654,0.00021261,2]
[330950089,1719971449325,-166.5,0.00021265,2]
[330950090,1719971449334,-150.0,0.00021266,4]
[330950091,1719971449343,-348.74721044,0.0002129,2]
[330950092,1719971449354,-688.63871007,0.00021292,2]
[330950093,1719971449363,-150.0,0.000213,2]
[330950094,1719971449373,-151.84144189,0.00021303,2]
[330950095,1719971449382,-150.0,0.00021304,4]
[330950096,1719971449391,-175.562374,0.0002135,2]
[330950097,1719971449400,-156.827806,0.0002135,2]
[330950098,1719971449409,-796.694807,0.0002135,2]
[330950099,1719971449419,-200.530549,0.0002135,2]
[330950100,1719971449428,-190.984088,0.0002135,2]
[330950101,1719971449437,-1169.852173,0.0002135,2]
[330950102,1719971449447,-173.616123,0.0002135,2]
[330950103,1719971449456,-155.515858,0.0002135,2]
[330950104,1719971449465,-1175.028323,0.0002135,2]
[330950105,1719971449474,-200.156936,0.0002135,2]
[330950106,1719971449483,-1008.901989,0.0002135,2]
[330950107,1719971449492,-177.179775,0.0002135,2]
[330950108,1719971449501,-3797.378985,0.0002135,2]
[330950109,1719971449510,-157.672577,0.0002135,2]
[330950110,1719971449519,-185.38697,0.0002135,2]
[330950111,1719971449529,-170.91358,0.0002135,2]
[330950112,1719971449538,-180.882048,0.0002135,2]
[330950113,1719971449547,-4035.607957,0.0002135,2]
[330950114,1719971449556,-283.48764,0.0002135,2]
[330950115,1719971449566,-378.414186,0.0002135,2]
[330950116,1719971449579,-5696.068477,0.0002135,2]
[330950117,1719971449588,-151.712677,0.0002135,2]
[330950118,1719971449597,-170.721357,0.0002135,2]
[330950119,1719971449606,-7141.40254399,0.00021355,2]
[330950120,1719971449615,-500.0,0.00021367,2]
[330950121,1719971449624,-200.0,0.00021367,2]
[330950122,1719971449633,-500.0,0.00021368,2]
[330950123,1719971449642,-500.0,0.00021368,2]
[330950124,1719971449651,-200.0,0.00021368,2]
[330950125,1719971449659,-150.0,0.00021377,2]
[330950126,1719971449668,-154.20267466,0.00021383,2]
[330950127,1719971449677,-150.57685201,0.00021389,2]
[330950128,1719971449687,-150.0,0.00021392,2]
[330950129,1719971449695,-608.71384337,0.00021398,2]
[330950130,1719971449705,-348.74721044,0.00021407,2]
[330950131,1719971449714,-150.0,0.0002141,2]
[330950132,1719971449723,-154.81548551,0.00021418,2]
[330950133,1719971449733,-2196.95469581,0.00021449,2]
[330950134,1719971449742,-152.71946826,0.00021453,2]
[330950135,1719971449751,-150.0,0.00021457,4]
[330950136,1719971449761,-150.0,0.00021457,4]
[330950137,1719971449771,-166.66666666,0.00021474,2]
[330950138,1719971449782,-150.0,0.00021479,2]
[330950139,1719971449792,-221.13782654,0.00021494,2]
[330950140,1719971449803,-491.0,0.000215,4]
[330950141,1719971449812,-192.0,0.000215,4]
[330950142,1719971449821,-150.0,0.000215,2]
[330950143,1719971449830,-257.0,0.000215,2]
[330950144,1719971449841,-150.097867,0.000215,3]
[330950145,1719971449852,-250000.0,0.000215,2]
[330950146,1719971449861,-2196.95469581,0.00021503,2]
[330950147,1719971449872,-155.97260672,0.00021523,2]
[330950148,1719971449882,-420.61659921,0.00021526,2]
[330950149,1719971449891,-150.0,0.00021529,2]
[330950150,1719971449901,-210.53587285,0.00021539,2]
[330950151,1719971449910,-671.02227991,0.00021539,2]
[330950152,1719971449919,-934.0326335,0.00021539,2]
[330950153,1719971449928,-1000.0,0.0002154,2]
[330950154,1719971449938,-804.9394836,0.0002154,2]
[330950155,1719971449946,-934.0326335,0.00021546,2]
[330950156,1719971449955,-145497.25,0.00021549,6]
[330950157,1719971449964,-8778.61,0.00021549,6]
[330950158,1719971449974,-27813.86,0.00021549,6]
[330950159,1719971449983,-934.0326335,0.00021557,2]
[330950160,1719971449995,-934.0326335,0.00021561,2]
[330950161,1719971450006,-150.0,0.00021563,2]
[330950162,1719971450016,-6753.9534026,0.00021565,2]
[330950163,1719971450025,-630.93672714,0.00021565,2]
[330950164,1719971450035,-833.78440553,0.0002157,2]
[330950165,1719971450044,-525.7806055,0.0002157,2]
[330950166,1719971450054,-6969.8042602,0.0002157,2]
[330950167,1719971450063,-33892.1372943,0.0002157,2]
[330950168,1719971450072,-2766.1436707,0.0002157,2]
[330950169,1719971450082,-6923.7704249,0.0002157,2]
[330950170,1719971450091,-150.0,0.00021571,2]
[330950171,1719971450100,-2000.0,0.00021577,2]
[330950172,1719971450109,-200.0,0.00021577,2]
[330950173,1719971450118,-420.61659921,0.00021577,2]
[330950174,1719971450128,-152.71946826,0.00021599,2]
[330950175,1719971450139,-533.0609,0.000216,2]
[330950176,1719971450148,-2004.5386,0.000216,2]
[330950177,1719971450157,-166.5,0.0002161,2]
[330950178,1719971450166,-150.0,0.00021611,4]
[330950179,1719971450177,-154.81548551,0.00021615,2]
[330950180,1719971450186,-796.694807,0.00021617,2]
[330950181,1719971450195,-1169.852173,0.00021617,2]
[330950182,1719971450205,-1175.028323,0.00021617,2]
[330950183,1719971450215,-1008.901989,0.00021617,2]
[330950184,1719971450226,-3797.378985,0.00021617,2]
[330950185,1719971450235,-4035.607957,0.00021617,2]
[330950186,1719971450244,-283.48764,0.00021617,2]
[330950187,1719971450253,-378.414186,0.00021617,2]
[330950188,1719971450264,-5696.068477,0.00021617,2]
[330950189,1719971450273,-500.0,0.0002162,2]
[330950190,1719971450283,-500.0,0.0002162,2]
[330950191,1719971450292,-150.57685201,0.0002162,2]
[330950192,1719971450303,-313.44,0.00021644,2]
[330950193,1719971450313,-156.12,0.00021644,2]
[330950194,1719971450322,-352.13,0.00021644,2]
[330950195,1719971450332,-786.181113,0.00021644,2]
[330950196,1719971450342,-151.84144189,0.00021646,2]
[330950197,1719971450353,-1613.0,0.00021651,2]
[330950198,1719971450362,-2196.95469581,0.00021658,2]
[330950199,1719971450372,-152.71946826,0.00021658,2]
[330950200,1719971450382,-835.0,0.00021682,2]
[330950201,1719971450391,-608.71384337,0.00021687,2]
[330950202,1719971450401,-210.0,0.0002169,2]
[330950203,1719971450411,-420.61659921,0.00021714,2]
[330950204,1719971450420,-152.71946826,0.00021724,2]
[330950205,1719971450430,-300.28002299,0.00021733,2]
[330950206,1719971450440,-420.61659921,0.00021736,2]
[330950207,1719971450450,-151.25837327,0.00021754,2]
[330950208,1719971450461,-348.74721044,0.0002176,2]
[330950209,1719971450472,-150.0,0.00021764,4]
[330950210,1719971450481,-688.63871007,0.00021768,2]